[Event "Turkish Super League 2019"]
[Site "Konya"]
[Date "2019.07.27"]
[Round "12"]
[White "Dordzhieva, Dinara"]
[Black "Ayan, Bengu Sena"]
[Result "1-0"]
[ECO "A11"]
[WhiteElo "2306"]
[BlackElo "1885"]
[Annotator "NA"]
[PlyCount "115"]
[EventDate "2019.07.17"]
[EventType "team-tourn"]
[EventCountry "TUR"]
[SourceTitle "playchess.com"]
[Source "ChessBase"]
[SourceQuality "1"]
[TimeControl "40/5400+30:1800+30"]

1. Nf3 d5 2. c4 c6 3. g3 Nf6 4. Bg2 g6 5. b3 Bg7 6. Bb2 O-O 7. O-O Nbd7 8. d3 Re8 9. d4 Ne4 10. e3 b6 11. Nbd2 Ndf6 12. Ne5 Bb7 13. Rc1 Rc8 14. Nxe4 Nxe4 15. Qe2 f6 16. Nf3 e5 17. Rfd1 Qe7 18. Bh3 Rc7 19. cxd5 cxd5 20. Rxc7 Qxc7 21. Rc1 Qf7 22. Qc2 Ba6 23. Qc7 Be2 24. Bg2 exd4 25. Nxd4 Bd3 26. Qxf7+ Kxf7 27. Rd1 Ba6 28. Nc6 Bb7 29. Nb4 Ke6 30. Bh3+ Kd6 31. Ba3 Nc5 32. Bg2 Kc7 33. Nxd5+ Kb8 34. Bb2 Rd8 35. Bf3 Rd7 36. e4 f5 {[%emt 1:19:00]} 37. Bxg7 {[%emt 1:04:30]} Rxg7 {[%emt 0:00:30]} 38. exf5 {[%emt 0:00:30]} gxf5 {[%emt 0:00:30]} 39. Re1 {[%emt 0:00:30]} Ne4 {[%emt 0:00:30]} 40. Ne3 {[%emt 0:00:30]} Nd2 {[%emt 0:00:30]} 41. Bxb7 {[%emt 0:30:30]} Kxb7 {[%emt 0:30:30]} 42. Rd1 {[%emt 0:00:30]} Nf3+ {[%emt 0:00:30]} 43. Kg2 {[%emt 0:00:30]} Nh4+ {[%emt 0:00:30]} 44. Kh3 {[%emt 0:00:30]} f4 {[%emt 0:02:30]} 45. Kxh4 {[%emt 0:00:30]} fxe3 {[%emt 0:00:30]} 46. fxe3 {[%emt 0:00:30]} Re7 {[%emt 0:00:30]} 47. Re1 {[%emt 0:00:30]} Kc6 {[%emt 0:00:00]} 48. e4 {[%emt 0:01:30]} Kd6 {[%emt 0:00:00]} 49. e5+ {[%emt 0:00:00]} Ke6 {[%emt 0:00:00]} 50. Re2 {[%emt 0:00:00]} Rg7 {[%emt 0:01:00]} 51. g4 {[%emt 0:00:30]} Rg6 {[%emt 0:00:30]} 52. Kh5 {[%emt 0:00:30]} Rg7 {[%emt 0:01:30]} 53. g5 {[%emt 0:00:30]} Rf7 {[%emt 0:00:30]} 54. Kg4 {[%emt 0:00:30]} Rf1 {[%emt 0:00:30]} 55. h4 {[%emt 0:00:30]} Rg1+ {[%emt 0:01:30]} 56. Kh5 {[%emt 0:00:30]} Rh1 {[%emt 0:00:30]} 57. Re4 {[%emt 0:00:30]} Kf5 {[%emt 0:00:30]} 58. e6 {[%emt 0:00:30]} 1-0

[Event "Turkish Super League 2019"]
[Site "Konya"]
[Date "2019.07.27"]
[Round "12"]
[White "Sevgi, Volkan"]
[Black "Tezcan, Emre"]
[Result "1-0"]
[ECO "B25"]
[WhiteElo "2302"]
[BlackElo "2082"]
[Annotator "NA"]
[PlyCount "115"]
[EventDate "2019.07.17"]
[EventType "team-tourn"]
[EventCountry "TUR"]
[SourceTitle "playchess.com"]
[Source "ChessBase"]
[SourceQuality "1"]
[TimeControl "40/5400+30:1800+30"]

1. e4 c5 2. Nc3 Nc6 3. g3 g6 4. Bg2 Bg7 5. d3 d6 6. Be3 Qa5 7. Qd2 Nd4 8. f4 e6 9. Nf3 Ne7 10. O-O O-O 11. Nd5 Qd8 12. Nxe7+ Qxe7 13. c3 Nxf3+ 14. Bxf3 Bd7 15. d4 cxd4 16. cxd4 Bb5 17. Rfc1 Qd7 18. Rc2 d5 19. e5 Rfc8 20. Rac1 Bf8 21. g4 Be7 22. Qa5 Rxc2 23. Rxc2 Bd8 24. Qc3 Bb6 25. b3 a5 26. a4 Ba6 27. Bf2 Qe7 {[%emt 1:07:30]} 28. Qe3 {[%emt 1:28:33]} f6 {[%emt 0:00:30]} 29. f5 {[%emt 0:00:41]} gxf5 {[%emt 0:00:30]} 30. gxf5 {[%emt 0:00:48]} fxe5 {[%emt 0:00:30]} 31. Qxe5 {[%emt 0:00:39]} Qg5+ {[%emt 0:00:30]} 32. Kh1 {[%emt 0:00:40]} Qxf5 {[%emt 0:00:30]} 33. Qxf5 {[%emt 0:00:30]} exf5 {[%emt 0:01:30]} 34. Bxd5+ {[%emt 0:00:13]} Kg7 {[%emt 0:17:24]} 35. Be3 {[%emt 0:08:29]} f4 {[%emt 0:00:40]} 36. Bxf4 {[%emt 0:00:30]} Bxd4 {[%emt 0:00:38]} 37. Rc7+ {[%emt 0:00:30]} Kf6 {[%emt 0:00:49]} 38. Bxb7 {[%emt 0:00:30]} Bxb7+ {[%emt 0:00:15]} 39. Rxb7 {[%emt 0:00:45]} Kf5 {[%emt 0:00:30]} 40. Bg3 {[%emt 0:00:39]} h6 {[%emt 0:00:30]} 41. Kg2 {[%emt 0:30:09]} Ke4 {[%emt 0:30:40]} 42. Kh3 {[%emt 0:00:28]} Kd3 {[%emt 0:00:07]} 43. Be1 {[%emt 0:00:35]} Kc2 {[%emt 0:00:30]} 44. Rb5 {[%emt 0:00:13]} Re8 {[%emt 0:00:35]} 45. Bxa5 {[%emt 0:00:30]} Re3+ {[%emt 0:00:49]} 46. Kg4 {[%emt 0:00:39]} Rxb3 {[%emt 0:00:02]} 47. Bc7 {[%emt 0:00:06]} Ra3 {[%emt 0:00:49]} 48. a5 {[%emt 0:00:30]} Kd3 {[%emt 0:00:30]} 49. h4 {[%emt 0:00:30]} Ra4 {[%emt 0:00:30]} 50. Kh5 {[%emt 0:00:30]} Bf6 {[%emt 0:00:30]} 51. Bg3 {[%emt 0:00:30]} Bc3 {[%emt 0:00:30]} 52. Kxh6 {[%emt 0:00:30]} Rxa5 {[%emt 0:00:30]} 53. Rxa5 {[%emt 0:00:30]} Bxa5 {[%emt 0:00:30]} 54. Kg6 {[%emt 0:00:30]} Ke4 {[%emt 0:00:30]} 55. h5 {[%emt 0:00:30]} Kf3 {[%emt 0:00:30]} 56. Bh4 {[%emt 0:00:30]} Kg4 {[%emt 0:00:30]} 57. Bg5 {[%emt 0:00:30]} Bc3 {[%emt 0:00:30]} 58. h6 {[%emt 0:00:30]} 1-0

[Event "Turkish Super League 2019"]
[Site "Konya"]
[Date "2019.07.27"]
[Round "12"]
[White "Eren, Ataberk"]
[Black "Ali Marandi, Cemil Can"]
[Result "0-1"]
[ECO "E48"]
[WhiteElo "2295"]
[BlackElo "2527"]
[Annotator "ChessBase"]
[PlyCount "72"]
[EventDate "2019.07.17"]
[EventType "team-tourn"]
[EventCountry "TUR"]
[SourceTitle "playchess.com"]
[Source "ChessBase"]
[SourceQuality "1"]
[TimeControl "40/5400+30:1800+30"]

1. d4 Nf6 2. c4 e6 3. Nc3 Bb4 4. e3 O-O 5. Bd3 b6 6. Nge2 Bb7 7. O-O d5 8. cxd5 exd5 9. Ng3 Re8 10. a3 Bf8 11. b4 Nbd7 12. Rb1 a6 13. a4 c6 14. a5 bxa5 15. bxa5 Ra7 16. Qa4 c5 17. Ba3 Qa8 18. dxc5 Bxc5 19. Rfe1 Bc6 20. Qb3 Rb7 21. Qa2 d4 22. exd4 Rxb1 23. Rxb1 Bxd4 24. Nce2 Ba7 25. Nf4 Ne5 26. Bf1 {[%emt 1:41:01]} Qd8 {[%emt 0:53:00]} 27. Nf5 {[%emt 0:00:30]} Nfg4 {[%emt 0:00:30]} 28. Nh3 {[%emt 0:01:47]} Be4 {[%emt 0:03:30]} 29. Nd6 {[%emt 0:00:35]} Bxb1 {[%emt 0:00:30]} 30. Qxb1 {[%emt 0:00:04]} Nxf2 {[%emt 0:11:30]} 31. Nxf2 {[%emt 0:00:36]} Qh4 {[%emt 0:01:30]} 32. Qa2 {[%emt 0:00:40]} Re6 {[%emt 0:00:30]} 33. Nf5 {[%emt 0:00:40]} Qf4 {[%emt 0:02:30]} 34. Qc2 {[%emt 0:00:24]} Qxf2+ {[%emt 0:01:30]} 35. Qxf2 {[%emt 0:00:06]} Bxf2+ {[%emt 0:00:00]} 36. Kh1 {[%emt 0:00:38]} Nc6 {[%emt 0:00:00]} 0-1

[Event "Turkish Super League 2019"]
[Site "Konya"]
[Date "2019.07.27"]
[Round "12"]
[White "Maltsevskaya, Aleksandra"]
[Black "Buksa, Nataliya"]
[Result "0-1"]
[ECO "D43"]
[WhiteElo "2294"]
[BlackElo "2379"]
[Annotator "NA"]
[PlyCount "82"]
[EventDate "2019.07.17"]
[EventType "team-tourn"]
[EventCountry "TUR"]
[SourceTitle "playchess.com"]
[Source "ChessBase"]
[SourceQuality "1"]
[TimeControl "40/5400+30:1800+30"]

1. d4 Nf6 2. Nf3 e6 3. c4 d5 4. Nc3 Nbd7 5. Qc2 c6 6. e4 dxe4 7. Nxe4 Nxe4 8. Qxe4 Nf6 9. Qc2 c5 10. Be3 cxd4 11. O-O-O Qa5 12. Nxd4 Bd7 13. Kb1 Rc8 14. Qb3 Bb4 15. Nb5 O-O 16. a3 Bc5 17. Bxc5 Rxc5 18. Qb4 Qb6 19. Rd6 Bc6 20. f3 Ne8 21. Rd1 a5 22. Qb3 Bxb5 23. cxb5 Nf6 24. Bd3 Rd8 25. Be4 Nxe4 26. Rxd8+ Qxd8 27. fxe4 h6 28. Rd1 Qc7 29. g3 Qe5 30. Qf3 Rxb5 31. Rd2 a4 32. Rf2 f6 33. Qd3 Rb3 34. Qc2 b5 35. Re2 {[%emt 1:46:34]} b4 {[%emt 1:39:52]} 36. axb4 {[%emt 0:00:30]} Rxb4 {[%emt 0:00:30]} 37. Ka2 {[%emt 0:00:30]} Kh7 {[%emt 0:00:30]} 38. Re3 {[%emt 0:00:30]} Qb5 {[%emt 0:00:30]} 39. h3 {[%emt 0:00:54]} h5 {[%emt 0:02:28]} 40. Qd1 {[%emt 0:00:00]} Rxb2+ {[%emt 0:00:00]} 41. Ka1 {[%emt 0:01:32]} Qe5 {[%emt 0:04:40]} 0-1

[Event "Turkish Super League 2019"]
[Site "Konya"]
[Date "2019.07.27"]
[Round "12"]
[White "Yildiz Kadioglu, Betul Cemre"]
[Black "Osmak, Iulija"]
[Result "0-1"]
[ECO "E06"]
[WhiteElo "2290"]
[BlackElo "2395"]
[Annotator "NA"]
[PlyCount "156"]
[EventDate "2019.07.17"]
[EventType "team-tourn"]
[EventCountry "TUR"]
[SourceTitle "playchess.com"]
[Source "ChessBase"]
[SourceQuality "1"]
[TimeControl "40/5400+30:1800+30"]

1. d4 Nf6 2. Nf3 e6 3. g3 d5 4. Bg2 c6 5. O-O Be7 6. c4 O-O 7. Qc2 b6 8. cxd5 cxd5 9. Bf4 Bb7 10. Rc1 Nc6 11. Nbd2 Nh5 12. Be3 Bd6 13. Nf1 Qd7 14. Qa4 Rfc8 15. Bd2 Nf6 16. Bf4 Bf8 17. Qd1 Na5 18. Rxc8 Rxc8 19. Rc1 Ne8 20. Rxc8 Qxc8 21. Qc1 Qd7 22. Qc2 Ba6 23. e3 f6 24. h4 Qc6 25. N1d2 Kf7 26. Qxc6 Nxc6 27. g4 Ke7 28. a3 Kd7 29. Bf1 Bxf1 30. Kxf1 Na5 31. Ke2 b5 32. Kd3 Nc4 33. Kc2 Bd6 34. Bxd6 Nexd6 35. Ne1 Ne4 36. Nxc4 bxc4 37. f3 Nd6 38. f4 {[%emt 1:48:16]} Kc6 {[%emt 1:39:38]} 39. Nf3 {[%emt 0:00:30]} Ne4 {[%emt 0:00:30]} 40. g5 {[%emt 0:00:00]} Ng3 {[%emt 0:00:00]} 41. Ne1 {[%emt 0:07:44]} Kb5 {[%emt 0:09:22]} 42. b3 {[%emt 0:02:30]} Nf5 {[%emt 0:07:30]} 43. Ng2 {[%emt 0:00:30]} a5 {[%emt 0:00:00]} 44. Kc3 {[%emt 0:02:30]} cxb3 {[%emt 0:01:00]} 45. Kxb3 {[%emt 0:00:30]} a4+ {[%emt 0:00:30]} 46. Kc3 {[%emt 0:00:00]} Nd6 {[%emt 0:00:30]} 47. Ne1 {[%emt 0:01:00]} Nf5 {[%emt 0:07:05]} 48. Ng2 {[%emt 0:00:30]} h6 {[%emt 0:01:47]} 49. gxf6 {[%emt 0:00:50]} gxf6 {[%emt 0:00:30]} 50. Kd3 {[%emt 0:00:13]} Nd6 {[%emt 0:00:58]} 51. Ne1 {[%emt 0:00:27]} Nc4 {[%emt 0:07:59]} 52. Nc2 {[%emt 0:00:52]} h5 {[%emt 0:02:51]} 53. Kc3 {[%emt 0:00:54]} Nd6 {[%emt 0:02:13]} 54. Ne1 {[%emt 0:00:30]} Ka5 {[%emt 0:00:29]} 55. Kd3 {[%emt 0:01:52]} Nb5 {[%emt 0:00:41]} 56. Nc2 {[%emt 0:03:26]} Kb6 {[%emt 0:00:08]} 57. Ke2 {[%emt 0:05:09]} Nc3+ {[%emt 0:00:38]} 58. Kd3 {[%emt 0:00:40]} Nb1 {[%emt 0:01:26]} 59. Ke2 {[%emt 0:01:54]} Kb5 {[%emt 0:01:25]} 60. Kd3 {[%emt 0:00:10]} f5 {[%emt 0:00:24]} 61. Ne1 {[%emt 0:03:49]} Nxa3 {[%emt 0:00:05]} 62. Kc3 {[%emt 0:00:37]} Nc4 {[%emt 0:00:35]} 63. Nf3 {[%emt 0:01:49]} Kc6 {[%emt 0:02:27]} 64. Kb4 {[%emt 0:01:15]} a3 {[%emt 0:00:57]} 65. Kb3 {[%emt 0:00:30]} Nxe3 {[%emt 0:00:00]} 66. Kxa3 {[%emt 0:00:46]} Ng2 {[%emt 0:00:34]} 67. Ne5+ {[%emt 0:00:16]} Kb5 {[%emt 0:00:00]} 68. Kb3 {[%emt 0:00:38]} Nxh4 {[%emt 0:01:00]} 69. Kc3 {[%emt 0:02:25]} Ng2 {[%emt 0:00:03]} 70. Kd3 {[%emt 0:00:36]} h4 {[%emt 0:00:30]} 71. Ke2 {[%emt 0:00:02]} h3 {[%emt 0:00:17]} 72. Kf3 {[%emt 0:01:40]} Nxf4 {[%emt 0:00:10]} 73. Kg3 {[%emt 0:00:13]} Ne2+ {[%emt 0:00:07]} 74. Kxh3 {[%emt 0:00:16]} Nxd4 {[%emt 0:00:01]} 75. Kg3 {[%emt 0:00:23]} Kc5 {[%emt 0:00:30]} 76. Kf4 {[%emt 0:00:00]} Nc6 {[%emt 0:00:10]} 77. Nf3 {[%emt 0:00:20]} d4 {[%emt 0:00:08]} 78. Ng5 {[%emt 0:00:51]} Kd5 {[%emt 0:00:06]} 0-1

[Event "Turkish Super League 2019"]
[Site "Konya"]
[Date "2019.07.27"]
[Round "12"]
[White "Dogan, Nazmi Can"]
[Black "Ertan, Can"]
[Result "0-1"]
[ECO "C54"]
[WhiteElo "2276"]
[BlackElo "2396"]
[Annotator "NA"]
[PlyCount "112"]
[EventDate "2019.07.17"]
[EventType "team-tourn"]
[EventCountry "TUR"]
[SourceTitle "playchess.com"]
[Source "ChessBase"]
[SourceQuality "1"]
[TimeControl "40/5400+30:1800+30"]

1. e4 e5 2. Nf3 Nc6 3. Bc4 Nf6 4. d3 Bc5 5. O-O d6 6. c3 O-O 7. h3 Na5 8. Bb5 a6 9. Ba4 Ba7 10. Re1 b5 11. Bc2 c5 12. Nbd2 Re8 13. Nh2 d5 14. Qf3 Bb7 15. Ndf1 Re6 16. Bg5 h6 17. Bh4 g5 18. Bg3 c4 19. exd5 cxd3 20. Qxd3 e4 21. Qe2 Nxd5 22. Ne3 Nxe3 23. fxe3 Nc4 24. Nf1 Nxb2 25. Bb3 Nc4 26. a4 Qd3 27. axb5 axb5 28. Bxc4 Qxc4 29. Qxc4 bxc4 30. Kh2 Bb6 31. Rxa8+ Bxa8 32. Nd2 Bd5 33. Nf1 Rc6 34. Be5 f6 35. Bg3 Kf7 36. Rb1 Ke6 37. Kg1 Ba5 38. Be1 Rb6 39. Rxb6+ Bxb6 40. g4 {[%emt 1:19:00]} f5 {[%emt 1:09:00]} 41. gxf5+ {[%emt 0:30:30]} Kxf5 {[%emt 0:30:30]} 42. Kf2 {[%emt 0:04:30]} Be6 {[%emt 0:00:30]} 43. Bd2 {[%emt 0:04:30]} Kg6 {[%emt 0:12:30]} 44. Kg2 {[%emt 0:00:30]} g4 {[%emt 0:00:30]} 45. hxg4 {[%emt 0:05:26]} Bxg4 {[%emt 0:00:30]} 46. Ng3 {[%emt 0:06:31]} Bf3+ {[%emt 0:01:30]} 47. Kh3 {[%emt 0:00:15]} Kg5 {[%emt 0:02:30]} 48. Bc1 {[%emt 0:01:20]} h5 {[%emt 0:01:30]} 49. Nf1 {[%emt 0:00:52]} Be2 {[%emt 0:00:30]} 50. Ng3 {[%emt 0:00:29]} Bd3 {[%emt 0:01:30]} 51. Kg2 {[%emt 0:00:56]} h4 {[%emt 0:00:30]} 52. Nh1 {[%emt 0:00:00]} Be2 {[%emt 0:01:30]} 53. Nf2 {[%emt 0:00:18]} Bf3+ {[%emt 0:00:30]} 54. Kh3 {[%emt 0:00:00]} Bc7 {[%emt 0:00:30]} 55. Ba3 {[%emt 0:09:02]} Bg3 {[%emt 0:00:30]} 56. Bd6 {[%emt 0:01:15]} Bxf2 {[%emt 0:00:30]} 0-1

[Event "Turkish Super League 2019"]
[Site "Konya"]
[Date "2019.07.27"]
[Round "12"]
[White "Kilic, Efe Mert"]
[Black "Heberla, Bartlomiej"]
[Result "0-1"]
[ECO "C01"]
[WhiteElo "2275"]
[BlackElo "2534"]
[Annotator "ChessBase"]
[PlyCount "70"]
[EventDate "2019.07.17"]
[EventType "team-tourn"]
[EventCountry "TUR"]
[SourceTitle "playchess.com"]
[Source "ChessBase"]
[SourceQuality "1"]
[TimeControl "40/5400+30:1800+30"]

1. e4 e6 2. d4 d5 3. exd5 exd5 4. Bd3 c5 5. dxc5 Bxc5 6. Nf3 Nf6 7. O-O O-O 8. Bg5 h6 9. Bh4 g5 10. Bg3 Ne4 11. Nbd2 f5 12. Bxb8 Rxb8 13. Nb3 Bb6 14. Nfd4 Qd6 15. c3 Bd7 16. Bb5 Bc6 17. Qh5 Qf6 18. a4 a6 19. Bd3 g4 20. Nxc6 bxc6 21. Bc2 g3 22. hxg3 Nxg3 23. Qf3 Nxf1 24. Rxf1 Rb7 25. a5 Ba7 26. Qd3 Qg5 27. Nd4 {[%emt 1:27:40]} Bxd4 {[%emt 1:10:30]} 28. cxd4 {[%emt 0:01:51]} Rg7 {[%emt 0:00:00]} 29. Qh3 {[%emt 0:00:12]} Qg4 {[%emt 0:02:00]} 30. Qh2 {[%emt 0:00:21]} Rf6 {[%emt 0:05:30]} 31. Bd1 {[%emt 0:03:01]} Qxd4 {[%emt 0:01:30]} 32. Qb8+ {[%emt 0:00:04]} Rf8 {[%emt 0:01:30]} 33. Qd6 {[%emt 0:00:56]} Qe4 {[%emt 0:00:30]} 34. f3 {[%emt 0:00:25]} Qd4+ {[%emt 0:00:30]} 35. Kh1 {[%emt 0:00:36]} Qxb2 {[%emt 0:07:58]} 0-1

[Event "Turkish Super League 2019"]
[Site "Konya"]
[Date "2019.07.27"]
[Round "12"]
[White "Gunduz, Umut Erdem"]
[Black "Ozen, Bahadir"]
[Result "1/2-1/2"]
[ECO "C54"]
[WhiteElo "2261"]
[BlackElo "2366"]
[Annotator "NA"]
[PlyCount "64"]
[EventDate "2019.07.17"]
[EventType "team-tourn"]
[EventCountry "TUR"]
[SourceTitle "playchess.com"]
[Source "ChessBase"]
[SourceQuality "1"]
[TimeControl "40/5400+30:1800+30"]

1. e4 {[%emt 0:00:30]} e5 {[%emt 0:00:30]} 2. Nf3 {[%emt 0:00:30]} Nc6 {[%emt 0:00:30]} 3. Bc4 {[%emt 0:00:00]} Bc5 {[%emt 0:01:30]} 4. O-O {[%emt 0:01:00]} Nf6 {[%emt 0:01:30]} 5. d3 {[%emt 0:01:30]} d6 {[%emt 0:01:30]} 6. c3 {[%emt 0:02:30]} O-O {[%emt 0:02:30]} 7. h3 {[%emt 0:04:30]} a6 {[%emt 0:02:30]} 8. Bb3 {[%emt 0:01:30]} h6 {[%emt 0:04:30]} 9. Nbd2 {[%emt 0:04:30]} Ba7 {[%emt 0:00:30]} 10. Re1 {[%emt 0:02:30]} Re8 {[%emt 0:10:30]} 11. Nf1 {[%emt 0:03:30]} Be6 {[%emt 0:01:30]} 12. Be3 {[%emt 0:02:30]} Bxe3 {[%emt 0:09:30]} 13. Nxe3 {[%emt 0:01:30]} d5 {[%emt 0:00:30]} 14. exd5 {[%emt 0:03:30]} Nxd5 {[%emt 0:00:30]} 15. Nxd5 {[%emt 0:00:00]} Bxd5 {[%emt 0:00:30]} 16. d4 {[%emt 0:00:00]} Bxb3 {[%emt 0:12:30]} 17. Qxb3 {[%emt 0:00:30]} exd4 {[%emt 0:00:30]} 18. Qxb7 {[%emt 0:00:30]} Qf6 {[%emt 0:03:30]} 19. Qxc7 {[%emt 0:04:30]} dxc3 {[%emt 0:05:30]} 20. bxc3 {[%emt 0:00:00]} Rxe1+ {[%emt 0:01:30]} 21. Rxe1 {[%emt 0:00:00]} Qxc3 {[%emt 0:01:30]} 22. Re3 {[%emt 0:00:30]} Qc1+ {[%emt 0:01:30]} 23. Kh2 {[%emt 0:01:30]} Qc4 {[%emt 0:01:30]} 24. Nd4 {[%emt 0:01:30]} Qxd4 {[%emt 0:01:30]} 25. Qxc6 {[%emt 0:00:00]} Qf4+ {[%emt 0:00:30]} 26. Kg1 {[%emt 0:00:00]} Rd8 {[%emt 0:01:30]} 27. Re8+ {[%emt 0:00:30]} Rxe8 {[%emt 0:00:30]} 28. Qxe8+ {[%emt 0:00:30]} Kh7 {[%emt 0:00:00]} 29. a4 {[%emt 0:00:30]} Qc1+ {[%emt 0:02:00]} 30. Kh2 {[%emt 0:00:00]} Qf4+ {[%emt 0:00:30]} 31. Kg1 {[%emt 0:00:00]} Qc1+ {[%emt 0:00:00]} 32. Kh2 {[%emt 0:00:30]} Qf4+ {[%emt 0:00:00]} 1/2-1/2

[Event "Turkish Super League 2019"]
[Site "Konya"]
[Date "2019.07.27"]
[Round "12"]
[White "Osmanodja, Filiz"]
[Black "Daulyte-Cornette, Deimante"]
[Result "0-1"]
[ECO "B03"]
[WhiteElo "2254"]
[BlackElo "2444"]
[Annotator "NA"]
[PlyCount "170"]
[EventDate "2019.07.17"]
[EventType "team-tourn"]
[EventCountry "TUR"]
[SourceTitle "playchess.com"]
[Source "ChessBase"]
[SourceQuality "1"]
[TimeControl "40/5400+30:1800+30"]

1. e4 Nf6 2. e5 Nd5 3. d4 d6 4. c4 Nb6 5. exd6 cxd6 6. Nc3 g6 7. Be3 Bg7 8. Rc1 O-O 9. b3 Bf5 10. h3 d5 11. c5 Nc8 12. g4 Bd7 13. Bg2 e6 14. Qd2 Nc6 15. Nf3 Re8 16. O-O b6 17. Bg5 f6 18. Bf4 bxc5 19. dxc5 Qa5 20. Nd4 Nxd4 21. Qxd4 Ne7 22. b4 Qa3 23. Bd2 Rab8 24. Qe3 Qa6 25. a3 f5 26. Ne2 e5 27. gxf5 gxf5 28. Rfe1 Bb5 29. f4 d4 30. Qb3+ Kf8 31. Ng3 Ba4 32. Qf3 e4 33. Nxe4 fxe4 34. Qxe4 {[%emt 1:45:57]} Qf6 {[%emt 1:41:46]} 35. Qxh7 {[%emt 0:00:30]} Bc6 {[%emt 0:00:30]} 36. Qd3 {[%emt 0:00:53]} Bxg2 {[%emt 0:02:43]} 37. Kxg2 {[%emt 0:00:01]} Nf5 {[%emt 0:00:57]} 38. c6 {[%emt 0:00:35]} Rxe1 {[%emt 0:00:25]} 39. Bxe1 {[%emt 0:00:45]} Ne3+ {[%emt 0:00:17]} 40. Kh2 {[%emt 0:00:00]} Bh6 {[%emt 0:00:00]} 41. Bg3 {[%emt 0:16:21]} Bxf4 {[%emt 0:04:52]} 42. Qe4 {[%emt 0:02:43]} Bxg3+ {[%emt 0:07:30]} 43. Kxg3 {[%emt 0:00:04]} Re8 {[%emt 0:03:10]} 44. Qf4 {[%emt 0:03:09]} Qxf4+ {[%emt 0:03:25]} 45. Kxf4 {[%emt 0:00:30]} d3 {[%emt 0:00:00]} 46. c7 {[%emt 0:01:10]} d2 {[%emt 0:00:04]} 47. c8=Q {[%emt 0:01:15]} Rxc8 {[%emt 0:01:49]} 48. Rxc8+ {[%emt 0:00:09]} Ke7 {[%emt 0:00:13]} 49. Kxe3 {[%emt 0:03:56]} d1=Q {[%emt 0:00:06]} 50. Rc3 {[%emt 0:00:08]} Ke6 {[%emt 0:00:47]} 51. Rd3 {[%emt 0:00:31]} Qf1 {[%emt 0:00:40]} 52. Kd4 {[%emt 0:01:28]} Qf4+ {[%emt 0:00:21]} 53. Kc3 {[%emt 0:00:29]} Ke5 {[%emt 0:00:20]} 54. Kb3 {[%emt 0:00:59]} Qf1 {[%emt 0:00:46]} 55. Rc3 {[%emt 0:01:35]} Kd4 {[%emt 0:03:37]} 56. Rc5 {[%emt 0:00:46]} Qxh3+ {[%emt 0:01:02]} 57. Kb2 {[%emt 0:01:27]} Qg2+ {[%emt 0:01:22]} 58. Kb3 {[%emt 0:00:57]} Qf3+ {[%emt 0:00:45]} 59. Kb2 {[%emt 0:00:15]} Qe2+ {[%emt 0:02:35]} 60. Rc2 {[%emt 0:01:18]} Qd3 {[%emt 0:00:44]} 61. Rc5 {[%emt 0:01:02]} Qd1 {[%emt 0:04:43]} 62. Rc1 {[%emt 0:00:40]} Qf3 {[%emt 0:00:54]} 63. Rc5 {[%emt 0:00:14]} Qe4 {[%emt 0:00:41]} 64. Ra5 {[%emt 0:01:31]} Kd3 {[%emt 0:00:41]} 65. Rc5 {[%emt 0:00:27]} a5 {[%emt 0:01:23]} 66. Kb3 {[%emt 0:00:43]} Qe6+ {[%emt 0:01:29]} 67. Ka4 {[%emt 0:00:22]} axb4 {[%emt 0:00:28]} 68. axb4 {[%emt 0:00:18]} Kd4 {[%emt 0:00:14]} 69. Ka3 {[%emt 0:00:35]} Qa6+ {[%emt 0:00:14]} 70. Kb3 {[%emt 0:00:12]} Qf1 {[%emt 0:00:32]} 71. Ka3 {[%emt 0:00:36]} Qa1+ {[%emt 0:00:18]} 72. Kb3 {[%emt 0:00:04]} Qa6 {[%emt 0:00:25]} 73. Rc1 {[%emt 0:01:17]} Qe2 {[%emt 0:01:08]} 74. Rc5 {[%emt 0:00:09]} Qa6 {[%emt 0:00:31]} 75. Rc1 {[%emt 0:00:48]} Qe6+ {[%emt 0:00:06]} 76. Ka4 {[%emt 0:00:35]} Qa2+ {[%emt 0:00:55]} 77. Kb5 {[%emt 0:00:00]} Qe2+ {[%emt 0:00:21]} 78. Ka4 {[%emt 0:00:19]} Qe6 {[%emt 0:00:55]} 79. Rc5 {[%emt 0:00:59]} Kd3 {[%emt 0:00:08]} 80. Ka3 {[%emt 0:00:39]} Qf7 {[%emt 0:00:55]} 81. Ra5 {[%emt 0:00:31]} Kc2 {[%emt 0:00:30]} 82. Rc5+ {[%emt 0:00:25]} Kb1 {[%emt 0:00:05]} 83. Ka4 {[%emt 0:00:42]} Kb2 {[%emt 0:00:30]} 84. Ra5 {[%emt 0:00:27]} Qd7+ {[%emt 0:00:22]} 85. Rb5 {[%emt 0:00:15]} Kc3 {[%emt 0:00:09]} 0-1

[Event "Turkish Super League 2019"]
[Site "Konya"]
[Date "2019.07.27"]
[Round "12"]
[White "Citak, Selim"]
[Black "Secer, Ata"]
[Result "1/2-1/2"]
[ECO "D77"]
[WhiteElo "2253"]
[BlackElo "2324"]
[Annotator "NA"]
[PlyCount "52"]
[EventDate "2019.07.17"]
[EventType "team-tourn"]
[EventCountry "TUR"]
[SourceTitle "playchess.com"]
[Source "ChessBase"]
[SourceQuality "1"]
[TimeControl "40/5400+30:1800+30"]

1. d4 {[%emt 0:00:30]} Nf6 {[%emt 0:01:30]} 2. c4 {[%emt 0:01:30]} g6 {[%emt 0:00:30]} 3. Nf3 {[%emt 0:02:30]} Bg7 {[%emt 0:00:30]} 4. g3 {[%emt 0:00:00]} O-O {[%emt 0:04:30]} 5. Bg2 {[%emt 0:00:00]} d5 {[%emt 0:00:30]} 6. O-O {[%emt 0:03:30]} dxc4 {[%emt 0:02:30]} 7. Na3 {[%emt 0:06:30]} Nc6 {[%emt 0:09:30]} 8. Nxc4 {[%emt 0:00:30]} Be6 {[%emt 0:00:30]} 9. Nce5 {[%emt 0:05:30]} Bd5 {[%emt 0:00:30]} 10. Bf4 {[%emt 0:01:30]} Nxe5 {[%emt 0:04:30]} 11. Bxe5 {[%emt 0:05:30]} c6 {[%emt 0:03:30]} 12. e3 {[%emt 0:04:30]} Qb6 {[%emt 0:07:30]} 13. Qc2 {[%emt 0:05:30]} Be4 {[%emt 0:02:30]} 14. Qd2 {[%emt 0:01:30]} Rfd8 {[%emt 0:05:30]} 15. Rfc1 {[%emt 0:02:30]} Nd5 {[%emt 0:07:30]} 16. Bxg7 {[%emt 0:00:30]} Kxg7 {[%emt 0:00:00]} 17. Ne5 {[%emt 0:03:30]} Bxg2 {[%emt 0:00:00]} 18. Kxg2 {[%emt 0:00:30]} Qb4 {[%emt 0:01:30]} 19. Qxb4 {[%emt 0:11:30]} Nxb4 {[%emt 0:01:30]} 20. Kf1 {[%emt 0:01:30]} f6 {[%emt 0:03:30]} 21. Nf3 {[%emt 0:02:30]} Rd7 {[%emt 0:03:30]} 22. Ke2 {[%emt 0:00:30]} Rad8 {[%emt 0:00:00]} 23. Rc4 {[%emt 0:01:30]} Nd5 {[%emt 0:01:00]} 24. Rc2 {[%emt 0:00:30]} Nb4 {[%emt 0:01:30]} 25. Rc4 {[%emt 0:01:30]} Nd5 {[%emt 0:00:30]} 26. Rc2 {[%emt 0:01:30]} Nb4 {[%emt 0:02:30]} 1/2-1/2